[Event "Titled Tuesday Blitz June 20 Late 2023"]
[White "Tissir, Mohamed"]
[Black "Cardoso Cardoso, Jose Gabriel"]
[WhiteFideId "9000240"]
[BlackFideId "4430492"]
[WhiteElo "2458"]
[BlackElo "2484"]
[Result "0-1"]
[Round "3"]
[TimeControl "180+2"]
[Date "2023.06.20"]
[WhiteClock "0:00:02"]
[BlackClock "0:00:02"]
[Board "50"]

1. e4 {[%clk 0:02:55]}  c5 {[%clk 0:03:00]} 2. Nc3 {[%clk 0:02:52]}  a6 {[%clk 0:02:57]} 3. Nf3 {[%clk 0:02:51]}  d6 {[%clk 0:02:57]} 4. d4 {[%clk 0:02:50]}  cxd4 {[%clk 0:02:58]} 5. Nxd4 {[%clk 0:02:51]}  Nf6 {[%clk 0:02:58]} 6. Nb3 {[%clk 0:02:51]}  g6 {[%clk 0:02:41]} 7. Be2 {[%clk 0:02:49]}  Bg7 {[%clk 0:02:41]} 8. Be3 {[%clk 0:02:45]}  O-O {[%clk 0:02:40]} 9. g4 {[%clk 0:02:42]}  b5 {[%clk 0:02:27]} 10. g5 {[%clk 0:02:41]}  Nfd7 {[%clk 0:02:26]} 11. a3 {[%clk 0:02:28]}  Bb7 {[%clk 0:02:25]} 12. h4 {[%clk 0:02:27]}  Ne5 {[%clk 0:02:11]} 13. h5 {[%clk 0:02:18]}  Nc4 {[%clk 0:02:06]} 14. Bxc4 {[%clk 0:02:18]}  bxc4 {[%clk 0:02:07]} 15. Nd4 {[%clk 0:02:14]}  Nc6 {[%clk 0:02:00]} 16. Nxc6 {[%clk 0:02:09]}  Bxc6 {[%clk 0:02:00]} 17. Bd4 {[%clk 0:02:10]}  e5 {[%clk 0:01:57]} 18. Be3 {[%clk 0:02:09]}  Rb8 {[%clk 0:01:52]} 19. Rb1 {[%clk 0:01:58]}  Qe7 {[%clk 0:01:35]} 20. hxg6 {[%clk 0:01:50]}  fxg6 {[%clk 0:01:31]} 21. Qg4 {[%clk 0:01:33]}  Rf7 {[%clk 0:01:20]} 22. Qh4 {[%clk 0:01:28]}  Bh8 {[%clk 0:01:18]} 23. Qg4 {[%clk 0:01:20]}  Rbf8 {[%clk 0:01:14]} 24. Rd1 {[%clk 0:01:17]}  Rd8 {[%clk 0:01:03]} 25. Rd2 {[%clk 0:00:56]}  Qb7 {[%clk 0:01:00]} 26. Qe6 {[%clk 0:00:46]}  Bxe4 {[%clk 0:00:57]} 27. Nxe4 {[%clk 0:00:41]}  Qxe4 {[%clk 0:00:58]} 28. Rxh7 {[%clk 0:00:41]}  Bg7 {[%clk 0:00:44]} 29. Re2 {[%clk 0:00:20]}  Qf5 {[%clk 0:00:40]} 30. Qxf5 {[%clk 0:00:19]}  Rxf5 {[%clk 0:00:39]} 31. Rh4 {[%clk 0:00:19]}  d5 {[%clk 0:00:40]} 32. c3 {[%clk 0:00:19]}  d4 {[%clk 0:00:38]} 33. Bd2 {[%clk 0:00:19]}  Rb8 {[%clk 0:00:34]} 34. Bc1 {[%clk 0:00:18]}  Rf3 {[%clk 0:00:27]} 35. Kd1 {[%clk 0:00:16]}  dxc3 {[%clk 0:00:25]} 36. bxc3 {[%clk 0:00:16]}  Rxc3 {[%clk 0:00:25]} 37. Rc2 {[%clk 0:00:17]}  Rd3+ {[%clk 0:00:22]} 38. Bd2 {[%clk 0:00:15]}  e4 {[%clk 0:00:16]} 39. Rxc4 {[%clk 0:00:15]}  Rb1+ {[%clk 0:00:13]} 40. Rc1 {[%clk 0:00:14]}  Rb2 {[%clk 0:00:06]} 41. Rc2 {[%clk 0:00:15]}  Rxc2 {[%clk 0:00:05]} 42. Kxc2 {[%clk 0:00:15]}  Rxa3 {[%clk 0:00:05]} 43. Rxe4 {[%clk 0:00:15]}  Ra2+ {[%clk 0:00:05]} 44. Kd3 {[%clk 0:00:15]}  Ra3+ {[%clk 0:00:05]} 45. Ke2 {[%clk 0:00:15]}  Kf7 {[%clk 0:00:05]} 46. Rc4 {[%clk 0:00:15]}  Be5 {[%clk 0:00:04]} 47. Rc6 {[%clk 0:00:14]}  Ra2 {[%clk 0:00:03]} 48. Kd3 {[%clk 0:00:13]}  Ra3+ {[%clk 0:00:03]} 49. Ke2 {[%clk 0:00:14]}  Ra4 {[%clk 0:00:03]} 50. Be3 {[%clk 0:00:14]}  Ra2+ {[%clk 0:00:02]} 51. Kf3 {[%clk 0:00:14]}  Ra4 {[%clk 0:00:01]} 52. Rb6 {[%clk 0:00:14]}  a5 {[%clk 0:00:01]} 53. Rb7+ {[%clk 0:00:14]}  Ke6 {[%clk 0:00:02]} 54. Ra7 {[%clk 0:00:13]}  Kf5 {[%clk 0:00:02]} 55. Rb7 {[%clk 0:00:13]}  Ra3 {[%clk 0:00:01]} 56. Rb5 {[%clk 0:00:13]}  a4 {[%clk 0:00:01]} 57. Ke2 {[%clk 0:00:13]}  Ra2+ {[%clk 0:00:02]} 58. Kd3 {[%clk 0:00:13]}  Ra3+ {[%clk 0:00:02]} 59. Ke2 {[%clk 0:00:14]}  Ke6 {[%clk 0:00:03]} 60. f4 {[%clk 0:00:13]}  Bd6 {[%clk 0:00:02]} 61. Rb6 {[%clk 0:00:13]}  Kd5 {[%clk 0:00:02]} 62. Rb5+ {[%clk 0:00:14]}  Ke4 {[%clk 0:00:01]} 63. Bd2 {[%clk 0:00:10]}  Ra2 {[%clk 0:00:02]} 64. Rb6 {[%clk 0:00:10]}  Bc5 {[%clk 0:00:01]} 65. Rb5 {[%clk 0:00:09]}  Bd4 {[%clk 0:00:01]} 66. Rb4 {[%clk 0:00:10]}  a3 {[%clk 0:00:01]} 67. Kd1 {[%clk 0:00:10]}  Rb2 {[%clk 0:00:01]} 68. Ra4 {[%clk 0:00:09]}  a2 {[%clk 0:00:01]} 69. Kc1 {[%clk 0:00:07]}  Rb1+ {[%clk 0:00:01]} 70. Kc2 {[%clk 0:00:02]}  a1=Q {[%clk 0:00:02]} 0-1


[Site "https://www.chess.com"]

[Event "Titled Tuesday Blitz June 20 Late 2023"]
[White "Bordi, Kevin"]
[Black "Deng, Henry"]
[WhiteFideId "621862"]
[BlackFideId "30965454"]
[WhiteElo "2796"]
[BlackElo "2533"]
[Result "1-0"]
[Round "3"]
[TimeControl "180+2"]
[Date "2023.06.20"]
[WhiteClock "0:00:37"]
[BlackClock "0:00:25"]
[Board "51"]

1. e4 {[%clk 0:03:00]}  c5 {[%clk 0:02:59]} 2. Nf3 {[%clk 0:03:00]}  e6 {[%clk 0:02:59]} 3. b4 {[%clk 0:03:01]}  cxb4 {[%clk 0:02:55]} 4. d4 {[%clk 0:03:01]}  d5 {[%clk 0:02:55]} 5. e5 {[%clk 0:03:01]}  Nc6 {[%clk 0:02:43]} 6. a3 {[%clk 0:03:00]}  Bd7 {[%clk 0:02:36]} 7. axb4 {[%clk 0:03:00]}  Nxb4 {[%clk 0:02:36]} 8. c3 {[%clk 0:03:00]}  Nc6 {[%clk 0:02:31]} 9. Bd3 {[%clk 0:03:00]}  a6 {[%clk 0:02:30]} 10. O-O {[%clk 0:03:00]}  Be7 {[%clk 0:02:28]} 11. Na3 {[%clk 0:02:59]}  b5 {[%clk 0:02:27]} 12. Nc2 {[%clk 0:02:59]}  Na5 {[%clk 0:02:24]} 13. Nb4 {[%clk 0:02:51]}  Nh6 {[%clk 0:02:16]} 14. Bxh6 {[%clk 0:02:50]}  gxh6 {[%clk 0:02:16]} 15. Ra2 {[%clk 0:02:41]}  Nc4 {[%clk 0:02:15]} 16. Qc1 {[%clk 0:02:35]}  Bf8 {[%clk 0:02:11]} 17. Rxa6 {[%clk 0:02:27]}  Rxa6 {[%clk 0:02:00]} 18. Nxa6 {[%clk 0:02:28]}  Rg8 {[%clk 0:01:54]} 19. Bxh7 {[%clk 0:02:26]}  Rg7 {[%clk 0:01:53]} 20. Bd3 {[%clk 0:02:25]}  f6 {[%clk 0:01:42]} 21. Re1 {[%clk 0:02:20]}  f5 {[%clk 0:01:41]} 22. Nb4 {[%clk 0:02:04]}  Kf7 {[%clk 0:01:30]} 23. Kh1 {[%clk 0:02:01]}  Be7 {[%clk 0:01:27]} 24. Qxh6 {[%clk 0:01:55]}  Qg8 {[%clk 0:01:16]} 25. Nxd5 {[%clk 0:01:47]}  Rxg2 {[%clk 0:01:11]} 26. Nf4 {[%clk 0:01:04]}  Rg4 {[%clk 0:01:04]} 27. d5 {[%clk 0:00:46]}  Ke8 {[%clk 0:00:45]} 28. Ra1 {[%clk 0:00:37]}  exd5 {[%clk 0:00:37]} 29. Ra8+ {[%clk 0:00:37]}  Bd8 {[%clk 0:00:25]} 30. Qf6 {[%clk 0:00:37]} 1-0


[Site "https://www.chess.com"]

[Event "Titled Tuesday Blitz June 20 Late 2023"]
[White "Sattarov, Bobir"]
[Black "Golubev, Mikhail"]
[WhiteFideId "14203081"]
[BlackFideId "14100983"]
[WhiteElo "2351"]
[BlackElo "2374"]
[Result "1-0"]
[Round "3"]
[TimeControl "180+2"]
[Date "2023.06.20"]
[WhiteClock "0:00:47"]
[BlackClock "0:00:00"]
[Board "53"]

1. e4 {[%clk 0:02:57]}  c5 {[%clk 0:02:59]} 2. Nf3 {[%clk 0:02:54]}  d6 {[%clk 0:02:58]} 3. d4 {[%clk 0:02:55]}  Nf6 {[%clk 0:02:58]} 4. Nc3 {[%clk 0:02:54]}  cxd4 {[%clk 0:02:59]} 5. Nxd4 {[%clk 0:02:55]}  g6 {[%clk 0:02:59]} 6. Be3 {[%clk 0:02:55]}  Bg7 {[%clk 0:03:00]} 7. f3 {[%clk 0:02:55]}  Nc6 {[%clk 0:03:00]} 8. Qd2 {[%clk 0:02:55]}  O-O {[%clk 0:03:01]} 9. g4 {[%clk 0:02:55]}  h5 {[%clk 0:02:57]} 10. gxh5 {[%clk 0:02:53]}  Nxh5 {[%clk 0:02:56]} 11. O-O-O {[%clk 0:02:53]}  Qa5 {[%clk 0:02:41]} 12. Kb1 {[%clk 0:02:47]}  Nxd4 {[%clk 0:02:22]} 13. Bxd4 {[%clk 0:02:47]}  Be6 {[%clk 0:02:18]} 14. Nd5 {[%clk 0:02:36]}  Qxd2 {[%clk 0:02:14]} 15. Nxe7+ {[%clk 0:02:35]}  Kh7 {[%clk 0:02:10]} 16. Rxd2 {[%clk 0:02:32]}  Bh6 {[%clk 0:01:53]} 17. Rd1 {[%clk 0:02:31]}  Rfe8 {[%clk 0:01:48]} 18. Nd5 {[%clk 0:02:31]}  Bxd5 {[%clk 0:01:48]} 19. exd5 {[%clk 0:02:32]}  Bg7 {[%clk 0:01:45]} 20. Bf2 {[%clk 0:02:29]}  Nf4 {[%clk 0:01:38]} 21. h4 {[%clk 0:02:19]}  Bf6 {[%clk 0:01:34]} 22. Bg3 {[%clk 0:02:16]}  Be5 {[%clk 0:01:33]} 23. a4 {[%clk 0:02:11]}  Kg7 {[%clk 0:01:30]} 24. Bf2 {[%clk 0:02:10]}  Re7 {[%clk 0:01:24]} 25. a5 {[%clk 0:02:09]}  b6 {[%clk 0:01:15]} 26. a6 {[%clk 0:02:06]}  Rh8 {[%clk 0:01:01]} 27. Bb5 {[%clk 0:02:05]}  Rh5 {[%clk 0:00:46]} 28. c3 {[%clk 0:02:02]}  Bf6 {[%clk 0:00:44]} 29. Bc6 {[%clk 0:01:56]}  Re2 {[%clk 0:00:33]} 30. Bxb6 {[%clk 0:01:51]}  axb6 {[%clk 0:00:33]} 31. a7 {[%clk 0:01:51]}  Rh8 {[%clk 0:00:33]} 32. a8=Q {[%clk 0:01:51]}  Rxa8 {[%clk 0:00:33]} 33. Bxa8 {[%clk 0:01:52]}  Be5 {[%clk 0:00:24]} 34. Bc6 {[%clk 0:01:50]}  Kf6 {[%clk 0:00:23]} 35. Bb5 {[%clk 0:01:46]}  Rf2 {[%clk 0:00:21]} 36. Rdf1 {[%clk 0:01:43]}  Rg2 {[%clk 0:00:20]} 37. Bc4 {[%clk 0:01:38]}  Nh5 {[%clk 0:00:20]} 38. Rc1 {[%clk 0:01:33]}  Ng3 {[%clk 0:00:17]} 39. Rhe1 {[%clk 0:01:32]}  Nf5 {[%clk 0:00:16]} 40. Rc2 {[%clk 0:01:29]}  Rg3 {[%clk 0:00:15]} 41. Rf2 {[%clk 0:01:19]}  Nxh4 {[%clk 0:00:14]} 42. f4 {[%clk 0:01:19]}  Bxc3 {[%clk 0:00:09]} 43. bxc3 {[%clk 0:01:18]}  Rxc3 {[%clk 0:00:10]} 44. Rc1 {[%clk 0:01:17]}  Re3 {[%clk 0:00:09]} 45. Ba2 {[%clk 0:01:10]}  Nf5 {[%clk 0:00:09]} 46. Rc6 {[%clk 0:01:09]}  Rg3 {[%clk 0:00:08]} 47. Rxb6 {[%clk 0:01:08]}  Rg1+ {[%clk 0:00:03]} 48. Kb2 {[%clk 0:01:08]}  Rg3 {[%clk 0:00:04]} 49. Bb1 {[%clk 0:01:06]}  Ne3 {[%clk 0:00:00]} 50. Ka2 {[%clk 0:00:47]} 1-0


[Site "https://www.chess.com"]

[Event "Titled Tuesday Blitz June 20 Late 2023"]
[White "The_Sherman_Variation"]
[Black "Kramnik, Vladimir"]
[BlackFideId "4101588"]
[WhiteElo "2510"]
[BlackElo "2703"]
[Result "0-1"]
[Round "3"]
[TimeControl "180+2"]
[Date "2023.06.20"]
[WhiteClock "0:00:10"]
[BlackClock "0:01:15"]
[Board "58"]

1. e4 {[%clk 0:02:59]}  c5 {[%clk 0:03:00]} 2. Nf3 {[%clk 0:02:58]}  e6 {[%clk 0:03:00]} 3. d4 {[%clk 0:02:58]}  cxd4 {[%clk 0:03:00]} 4. Nxd4 {[%clk 0:02:59]}  Nf6 {[%clk 0:02:59]} 5. Nc3 {[%clk 0:02:59]}  Nc6 {[%clk 0:02:59]} 6. Nxc6 {[%clk 0:02:55]}  bxc6 {[%clk 0:02:59]} 7. e5 {[%clk 0:02:55]}  Nd5 {[%clk 0:02:59]} 8. Ne4 {[%clk 0:02:56]}  Qc7 {[%clk 0:02:59]} 9. f4 {[%clk 0:02:57]}  a5 {[%clk 0:03:00]} 10. c4 {[%clk 0:02:54]}  Bb4+ {[%clk 0:02:58]} 11. Ke2 {[%clk 0:02:47]}  O-O {[%clk 0:02:58]} 12. a3 {[%clk 0:02:43]}  Be7 {[%clk 0:02:57]} 13. Qc2 {[%clk 0:02:31]}  Ba6 {[%clk 0:02:45]} 14. Ke1 {[%clk 0:02:23]}  Nb6 {[%clk 0:02:37]} 15. Bd3 {[%clk 0:02:22]}  f5 {[%clk 0:02:29]} 16. exf6 {[%clk 0:02:21]}  gxf6 {[%clk 0:02:28]} 17. Be3 {[%clk 0:02:15]}  d5 {[%clk 0:02:22]} 18. Bd4 {[%clk 0:01:55]}  dxe4 {[%clk 0:02:16]} 19. Bxe4 {[%clk 0:01:54]}  Rf7 {[%clk 0:02:08]} 20. b3 {[%clk 0:01:47]}  Rd8 {[%clk 0:02:05]} 21. Rd1 {[%clk 0:01:39]}  a4 {[%clk 0:02:04]} 22. Qf2 {[%clk 0:01:37]}  c5 {[%clk 0:02:00]} 23. Bc3 {[%clk 0:01:21]}  axb3 {[%clk 0:01:56]} 24. h4 {[%clk 0:01:09]}  Rxd1+ {[%clk 0:01:45]} 25. Kxd1 {[%clk 0:01:10]}  Na4 {[%clk 0:01:45]} 26. Ba1 {[%clk 0:01:05]}  b2 {[%clk 0:01:40]} 27. Bxb2 {[%clk 0:01:05]}  Nxb2+ {[%clk 0:01:40]} 28. Qxb2 {[%clk 0:01:03]}  Qxf4 {[%clk 0:01:39]} 29. Qe2 {[%clk 0:01:00]}  f5 {[%clk 0:01:31]} 30. Bd3 {[%clk 0:00:49]}  Qd4 {[%clk 0:01:30]} 31. Kc2 {[%clk 0:00:46]}  Bf6 {[%clk 0:01:26]} 32. Rb1 {[%clk 0:00:39]}  Qc3+ {[%clk 0:01:23]} 33. Kd1 {[%clk 0:00:39]}  Bxc4 {[%clk 0:01:15]} 34. Rb8+ {[%clk 0:00:10]}  Kg7 {[%clk 0:01:15]} 0-1


[Site "https://www.chess.com"]

[Event "Titled Tuesday Blitz June 20 Late 2023"]
[White "Kokoszczynski, Jan"]
[Black "Sadhwani, Raunak"]
[WhiteFideId "1174460"]
[BlackFideId "35093487"]
[WhiteElo "2139"]
[BlackElo "2631"]
[Result "0-1"]
[Round "3"]
[TimeControl "180+2"]
[Date "2023.06.20"]
[WhiteClock "0:00:00"]
[BlackClock "0:01:01"]
[Board "62"]

1. d4 {[%clk 0:02:59]}  g6 {[%clk 0:02:54]} 2. c4 {[%clk 0:02:59]}  Bg7 {[%clk 0:02:54]} 3. Nc3 {[%clk 0:03:00]}  d6 {[%clk 0:02:53]} 4. e4 {[%clk 0:03:00]}  Nf6 {[%clk 0:02:52]} 5. Nf3 {[%clk 0:02:59]}  O-O {[%clk 0:02:52]} 6. h3 {[%clk 0:02:57]}  Nbd7 {[%clk 0:02:50]} 7. Be3 {[%clk 0:02:52]}  e5 {[%clk 0:02:49]} 8. d5 {[%clk 0:02:51]}  Nc5 {[%clk 0:02:49]} 9. Nd2 {[%clk 0:02:52]}  a5 {[%clk 0:02:49]} 10. g4 {[%clk 0:02:42]}  c6 {[%clk 0:02:48]} 11. Qf3 {[%clk 0:02:11]}  a4 {[%clk 0:02:43]} 12. Be2 {[%clk 0:02:05]}  Qa5 {[%clk 0:02:38]} 13. Qg2 {[%clk 0:01:45]}  Bd7 {[%clk 0:02:33]} 14. g5 {[%clk 0:01:41]}  Nh5 {[%clk 0:02:32]} 15. Bxh5 {[%clk 0:01:38]}  gxh5 {[%clk 0:02:27]} 16. O-O {[%clk 0:01:30]}  a3 {[%clk 0:02:14]} 17. Nb3 {[%clk 0:00:46]}  Nxb3 {[%clk 0:02:12]} 18. axb3 {[%clk 0:00:46]}  Qb4 {[%clk 0:02:13]} 19. Ne2 {[%clk 0:00:29]}  axb2 {[%clk 0:02:07]} 20. Rab1 {[%clk 0:00:29]}  Qxb3 {[%clk 0:02:07]} 21. Ng3 {[%clk 0:00:30]}  Kh8 {[%clk 0:01:23]} 22. Nxh5 {[%clk 0:00:29]}  cxd5 {[%clk 0:01:18]} 23. cxd5 {[%clk 0:00:20]}  Bb5 {[%clk 0:01:18]} 24. Rfe1 {[%clk 0:00:05]}  Bd3 {[%clk 0:01:17]} 25. Qf3 {[%clk 0:00:06]}  Bxb1 {[%clk 0:01:14]} 26. Qf5 {[%clk 0:00:04]}  Ra1 {[%clk 0:01:05]} 27. Nf6 {[%clk 0:00:03]}  Bxe4 {[%clk 0:01:00]} 28. Qxe4 {[%clk 0:00:02]}  Rxe1+ {[%clk 0:01:00]} 29. Kh2 {[%clk 0:00:00]}  b1=Q {[%clk 0:01:01]} 0-1


[Site "https://www.chess.com"]

[Event "Titled Tuesday Blitz June 20 Late 2023"]
[White "Lashkin, Jegor"]
[Black "Tifferet, Shaked"]
[WhiteFideId "13907808"]
[BlackFideId "2811529"]
[WhiteElo "2368"]
[BlackElo "2142"]
[Result "0-1"]
[Round "3"]
[TimeControl "180+2"]
[Date "2023.06.20"]
[WhiteClock "0:00:04"]
[BlackClock "0:00:09"]
[Board "63"]

1. Nf3 {[%clk 0:03:00]}  Nf6 {[%clk 0:02:58]} 2. e3 {[%clk 0:03:01]}  b6 {[%clk 0:02:58]} 3. b3 {[%clk 0:03:01]}  Bb7 {[%clk 0:02:59]} 4. Bb2 {[%clk 0:03:02]}  e6 {[%clk 0:03:00]} 5. c3 {[%clk 0:03:02]}  Be7 {[%clk 0:03:00]} 6. c4 {[%clk 0:03:00]}  O-O {[%clk 0:03:00]} 7. Be2 {[%clk 0:03:01]}  d5 {[%clk 0:03:00]} 8. O-O {[%clk 0:03:01]}  c5 {[%clk 0:02:59]} 9. d3 {[%clk 0:02:58]}  Nc6 {[%clk 0:02:57]} 10. a3 {[%clk 0:02:56]}  dxc4 {[%clk 0:02:49]} 11. bxc4 {[%clk 0:02:56]}  Qc7 {[%clk 0:02:50]} 12. Nc3 {[%clk 0:02:55]}  Rad8 {[%clk 0:02:49]} 13. Qc2 {[%clk 0:02:55]}  Qb8 {[%clk 0:02:48]} 14. Rad1 {[%clk 0:02:55]}  Ne5 {[%clk 0:02:45]} 15. Nxe5 {[%clk 0:02:49]}  Qxe5 {[%clk 0:02:46]} 16. Nd5 {[%clk 0:02:47]}  Qd6 {[%clk 0:02:44]} 17. Nxe7+ {[%clk 0:02:46]}  Qxe7 {[%clk 0:02:45]} 18. e4 {[%clk 0:02:41]}  e5 {[%clk 0:02:36]} 19. a4 {[%clk 0:02:30]}  Nd7 {[%clk 0:02:35]} 20. a5 {[%clk 0:02:30]}  bxa5 {[%clk 0:02:33]} 21. Bc3 {[%clk 0:02:29]}  Nb8 {[%clk 0:02:31]} 22. Bxa5 {[%clk 0:02:29]}  Rd6 {[%clk 0:02:31]} 23. Bc3 {[%clk 0:02:20]}  Nc6 {[%clk 0:02:31]} 24. Ra1 {[%clk 0:02:20]}  f5 {[%clk 0:02:15]} 25. Bf3 {[%clk 0:01:56]}  f4 {[%clk 0:02:03]} 26. Rfb1 {[%clk 0:01:48]}  Bc8 {[%clk 0:01:59]} 27. Rb5 {[%clk 0:01:32]}  g5 {[%clk 0:01:53]} 28. h3 {[%clk 0:01:30]}  Rg6 {[%clk 0:01:53]} 29. Qe2 {[%clk 0:01:22]}  Rg7 {[%clk 0:01:37]} 30. Bg4 {[%clk 0:01:15]}  Bxg4 {[%clk 0:01:31]} 31. Qxg4 {[%clk 0:01:14]}  Rd8 {[%clk 0:01:31]} 32. Ra6 {[%clk 0:01:09]}  Rg6 {[%clk 0:01:09]} 33. Qd1 {[%clk 0:00:52]}  Rgd6 {[%clk 0:00:59]} 34. Qh5 {[%clk 0:00:45]}  Rxd3 {[%clk 0:00:16]} 35. Rxc6 {[%clk 0:00:42]}  Rxc3 {[%clk 0:00:17]} 36. Rb1 {[%clk 0:00:19]}  Rxc4 {[%clk 0:00:16]} 37. Qh6 {[%clk 0:00:17]}  Rxe4 {[%clk 0:00:15]} 38. Rxc5 {[%clk 0:00:07]}  Red4 {[%clk 0:00:10]} 39. Rcc1 {[%clk 0:00:07]}  R4d6 {[%clk 0:00:10]} 40. Qh5 {[%clk 0:00:06]}  Rg6 {[%clk 0:00:10]} 41. Qe2 {[%clk 0:00:05]}  e4 {[%clk 0:00:09]} 42. Rc4 {[%clk 0:00:04]}  Re8 {[%clk 0:00:09]} 43. Rbc1 {[%clk 0:00:05]}  Re6 {[%clk 0:00:09]} 44. Rc7 {[%clk 0:00:05]}  Qf6 {[%clk 0:00:10]} 45. Qc4 {[%clk 0:00:04]}  Re7 {[%clk 0:00:08]} 46. Rc8+ {[%clk 0:00:04]}  Kg7 {[%clk 0:00:08]} 47. Qe2 {[%clk 0:00:03]}  f3 {[%clk 0:00:08]} 48. Qe3 {[%clk 0:00:02]}  fxg2 {[%clk 0:00:08]} 49. R8c5 {[%clk 0:00:02]}  h6 {[%clk 0:00:08]} 50. Rd1 {[%clk 0:00:02]}  Rd6 {[%clk 0:00:07]} 51. Rcd5 {[%clk 0:00:02]}  Rxd5 {[%clk 0:00:07]} 52. Rxd5 {[%clk 0:00:03]}  a6 {[%clk 0:00:08]} 53. Qc5 {[%clk 0:00:03]}  Rb7 {[%clk 0:00:06]} 54. Rf5 {[%clk 0:00:03]}  Qa1+ {[%clk 0:00:04]} 55. Kxg2 {[%clk 0:00:03]}  Rd7 {[%clk 0:00:03]} 56. Qc6 {[%clk 0:00:03]}  Qd4 {[%clk 0:00:04]} 57. h4 {[%clk 0:00:02]}  gxh4 {[%clk 0:00:04]} 58. Qc8 {[%clk 0:00:01]}  h3+ {[%clk 0:00:04]} 59. Kxh3 {[%clk 0:00:01]}  Qd3+ {[%clk 0:00:05]} 60. Kg2 {[%clk 0:00:01]}  Qd6 {[%clk 0:00:03]} 61. Qe8 {[%clk 0:00:01]}  Qg6+ {[%clk 0:00:03]} 62. Qxg6+ {[%clk 0:00:01]}  Kxg6 {[%clk 0:00:04]} 63. Re5 {[%clk 0:00:02]}  Ra7 {[%clk 0:00:03]} 64. Rxe4 {[%clk 0:00:02]}  a5 {[%clk 0:00:04]} 65. Ra4 {[%clk 0:00:03]}  Kf5 {[%clk 0:00:04]} 66. Kf3 {[%clk 0:00:03]}  h5 {[%clk 0:00:04]} 67. Kg3 {[%clk 0:00:03]}  Kg5 {[%clk 0:00:04]} 68. f4+ {[%clk 0:00:04]}  Kf5 {[%clk 0:00:05]} 69. Kh4 {[%clk 0:00:04]}  Ra6 {[%clk 0:00:03]} 70. Kxh5 {[%clk 0:00:04]}  Ra8 {[%clk 0:00:04]} 71. Kh6 {[%clk 0:00:03]}  Ra7 {[%clk 0:00:03]} 72. Ra2 {[%clk 0:00:02]}  a4 {[%clk 0:00:03]} 73. Ra3 {[%clk 0:00:03]}  Ra5 {[%clk 0:00:03]} 74. Kh5 {[%clk 0:00:02]}  Kxf4+ {[%clk 0:00:04]} 75. Kg6 {[%clk 0:00:02]}  Ke4 {[%clk 0:00:04]} 76. Kf6 {[%clk 0:00:03]}  Kd4 {[%clk 0:00:05]} 77. Ke6 {[%clk 0:00:04]}  Kc4 {[%clk 0:00:06]} 78. Kd6 {[%clk 0:00:04]}  Kb4 {[%clk 0:00:06]} 79. Rh3 {[%clk 0:00:04]}  a3 {[%clk 0:00:06]} 80. Rh4+ {[%clk 0:00:05]}  Kc3 {[%clk 0:00:06]} 81. Rh3+ {[%clk 0:00:05]}  Kd2 {[%clk 0:00:06]} 82. Rh2+ {[%clk 0:00:05]}  Ke3 {[%clk 0:00:06]} 83. Rh3+ {[%clk 0:00:05]}  Kf2 {[%clk 0:00:06]} 84. Rh2+ {[%clk 0:00:06]}  Ke3 {[%clk 0:00:06]} 85. Ra2 {[%clk 0:00:05]}  Kd3 {[%clk 0:00:05]} 86. Kc6 {[%clk 0:00:06]}  Kc3 {[%clk 0:00:06]} 87. Kb6 {[%clk 0:00:07]}  Kb4 {[%clk 0:00:06]} 88. Ra1 {[%clk 0:00:07]}  a2 {[%clk 0:00:05]} 89. Kc6 {[%clk 0:00:07]}  Kb3 {[%clk 0:00:05]} 90. Kb6 {[%clk 0:00:07]}  Ra8 {[%clk 0:00:05]} 91. Kb7 {[%clk 0:00:08]}  Ra3 {[%clk 0:00:06]} 92. Kb6 {[%clk 0:00:08]}  Kb2 {[%clk 0:00:06]} 93. Rh1 {[%clk 0:00:08]}  a1=Q {[%clk 0:00:07]} 94. Rh2+ {[%clk 0:00:09]}  Kb3 {[%clk 0:00:07]} 95. Rh3+ {[%clk 0:00:09]}  Ka2 {[%clk 0:00:08]} 96. Rh2+ {[%clk 0:00:04]}  Qb2+ {[%clk 0:00:09]} 0-1


[Site "https://www.chess.com"]

[Event "Titled Tuesday Blitz June 20 Late 2023"]
[White "Holt, Conrad"]
[Black "Przybylski, Wojciech"]
[WhiteFideId "2034387"]
[BlackFideId "1117599"]
[WhiteElo "2592"]
[BlackElo "2228"]
[Result "1-0"]
[Round "3"]
[TimeControl "180+2"]
[Date "2023.06.20"]
[WhiteClock "0:00:18"]
[BlackClock "0:00:02"]
[Board "65"]

1. d4 {[%clk 0:03:00]}  d5 {[%clk 0:02:55]} 2. c4 {[%clk 0:03:01]}  c6 {[%clk 0:02:55]} 3. Nc3 {[%clk 0:03:01]}  Nf6 {[%clk 0:02:55]} 4. e3 {[%clk 0:03:01]}  e6 {[%clk 0:02:52]} 5. Bd3 {[%clk 0:03:01]}  Nbd7 {[%clk 0:02:52]} 6. e4 {[%clk 0:03:01]}  dxe4 {[%clk 0:02:51]} 7. Nxe4 {[%clk 0:03:02]}  Nxe4 {[%clk 0:02:50]} 8. Bxe4 {[%clk 0:03:02]}  Bb4+ {[%clk 0:02:50]} 9. Bd2 {[%clk 0:03:02]}  Qa5 {[%clk 0:02:50]} 10. Nf3 {[%clk 0:03:02]}  c5 {[%clk 0:02:49]} 11. O-O {[%clk 0:02:56]}  Bxd2 {[%clk 0:02:48]} 12. Nxd2 {[%clk 0:02:56]}  cxd4 {[%clk 0:02:45]} 13. Nb3 {[%clk 0:02:55]}  Qc7 {[%clk 0:02:36]} 14. Qxd4 {[%clk 0:02:37]}  O-O {[%clk 0:02:29]} 15. Rad1 {[%clk 0:02:30]}  Nf6 {[%clk 0:02:23]} 16. Bf3 {[%clk 0:02:28]}  e5 {[%clk 0:02:22]} 17. Qc5 {[%clk 0:02:28]}  Qb8 {[%clk 0:01:58]} 18. Rfe1 {[%clk 0:02:22]}  Be6 {[%clk 0:01:56]} 19. Qb5 {[%clk 0:01:43]}  Qc7 {[%clk 0:01:32]} 20. Nc5 {[%clk 0:01:17]}  Rab8 {[%clk 0:01:10]} 21. Nxe6 {[%clk 0:01:13]}  fxe6 {[%clk 0:01:09]} 22. Qxe5 {[%clk 0:01:09]}  Qxc4 {[%clk 0:01:01]} 23. Qxe6+ {[%clk 0:01:07]}  Qxe6 {[%clk 0:01:00]} 24. Rxe6 {[%clk 0:01:08]}  Rf7 {[%clk 0:00:51]} 25. Kf1 {[%clk 0:00:58]}  Rc7 {[%clk 0:00:50]} 26. Red6 {[%clk 0:00:53]}  Kf7 {[%clk 0:00:49]} 27. g4 {[%clk 0:00:48]}  h6 {[%clk 0:00:48]} 28. h4 {[%clk 0:00:42]}  g5 {[%clk 0:00:42]} 29. hxg5 {[%clk 0:00:42]}  hxg5 {[%clk 0:00:42]} 30. Re1 {[%clk 0:00:32]}  Rh8 {[%clk 0:00:35]} 31. Kg2 {[%clk 0:00:22]}  b6 {[%clk 0:00:23]} 32. Re5 {[%clk 0:00:19]}  Rc5 {[%clk 0:00:13]} 33. Rxc5 {[%clk 0:00:18]}  bxc5 {[%clk 0:00:13]} 34. Ra6 {[%clk 0:00:18]}  Rd8 {[%clk 0:00:09]} 35. Rxa7+ {[%clk 0:00:18]}  Kg6 {[%clk 0:00:10]} 36. b3 {[%clk 0:00:17]}  Rd2 {[%clk 0:00:09]} 37. Ra5 {[%clk 0:00:16]}  Rc2 {[%clk 0:00:09]} 38. Ra4 {[%clk 0:00:16]}  Kf7 {[%clk 0:00:07]} 39. Rc4 {[%clk 0:00:15]}  Rxc4 {[%clk 0:00:06]} 40. bxc4 {[%clk 0:00:15]}  Nd7 {[%clk 0:00:06]} 41. a4 {[%clk 0:00:15]}  Ne5 {[%clk 0:00:04]} 42. a5 {[%clk 0:00:15]}  Ke7 {[%clk 0:00:03]} 43. Bd5 {[%clk 0:00:14]}  Kd6 {[%clk 0:00:04]} 44. a6 {[%clk 0:00:14]}  Nd7 {[%clk 0:00:02]} 45. a7 {[%clk 0:00:14]}  Nb6 {[%clk 0:00:02]} 46. a8=Q {[%clk 0:00:14]}  Nxa8 {[%clk 0:00:02]} 47. Bxa8 {[%clk 0:00:15]}  Ke5 {[%clk 0:00:03]} 48. Bd5 {[%clk 0:00:15]}  Kf4 {[%clk 0:00:03]} 49. f3 {[%clk 0:00:16]}  Ke3 {[%clk 0:00:03]} 50. Kg3 {[%clk 0:00:17]}  Kd4 {[%clk 0:00:04]} 51. f4 {[%clk 0:00:18]}  gxf4+ {[%clk 0:00:02]} 52. Kxf4 {[%clk 0:00:18]} 1-0


[Site "https://www.chess.com"]